fUST/lending_fUST_20240502
["ID","MTS","AMOUNT","RATE_DAILY","PERIOD"]
[325225628,1714596667782,-905.71,0.0005726,120]
[325225629,1714596667791,-417.250857,0.0005726,120]
[325225630,1714596667801,-287.73985,0.0005726,120]
[325225631,1714596667810,-287.73985,0.0005726,120]
[325225632,1714596667819,-500.0,0.0005726,120]
[325225633,1714596667828,-1006.03,0.0005726,120]
[325225634,1714596667838,-990.64,0.0005726,120]
[325225635,1714596667847,-151.0,0.0005726,120]
[325225636,1714596667856,-451.90811263,0.0005726,120]
[325225637,1714596667865,-529.69,0.0005726,120]
[325225638,1714596667875,-500.0,0.0005726,120]
[325225639,1714596667884,-500.0,0.0005726,120]
[325225640,1714596667893,-399.351879,0.0005726,120]
[325225641,1714596667902,-957.98,0.0005726,120]
[325225642,1714596667912,-151.0,0.0005726,120]
[325225643,1714596667921,-399.351879,0.0005726,120]
[325225644,1714596667932,-957.45,0.0005726,120]
[325225645,1714596667941,-501.28,0.0005726,120]
[325225646,1714596667952,-320.42468813,0.0005726,120]
[325225647,1714596667962,-500.0,0.0005726,120]
[325225648,1714596667974,-1396.65,0.0005726,30]
[325225649,1714596667985,-13131.9,0.0005726,120]
[325225650,1714596667994,-649.29,0.0005726,120]
[325225651,1714596668003,-540.12,0.0005726,120]
[325225652,1714596668013,-500.0,0.0005726,120]
[325225653,1714596668023,-220.364079,0.0005726,120]
[325225654,1714596668032,-220.364079,0.0005726,120]
[325225655,1714596668041,-5415.88,0.0005726,120]
[325225656,1714596668051,-500.0,0.0005726,120]
[325225657,1714596668061,-524.46,0.0005726,120]
[325225658,1714596668070,-500.0,0.0005726,120]
[325225659,1714596668079,-945.484392,0.0005726,120]
[325225660,1714596668088,-1124.84,0.0005726,120]
[325225661,1714596668098,-945.484392,0.0005726,120]
[325225662,1714596668107,-725.84,0.0005726,120]
[325225663,1714596668116,-721.56,0.0005726,120]
[325225664,1714596668126,-2624.92,0.0005726,120]
[325225665,1714596668135,-175.798414,0.0005726,120]
[325225666,1714596668144,-773.09,0.0005726,120]
[325225667,1714596668154,-151.0,0.0005726,120]
[325225668,1714596668163,-175.798414,0.0005726,120]
[325225669,1714596668172,-672.9,0.0005726,120]
[325225670,1714596668181,-671.69,0.0005726,120]
[325225671,1714596668191,-500.0,0.0005726,120]
[325225672,1714596668200,-904.57,0.0005726,120]
[325225673,1714596668210,-262.519492,0.0005726,120]
[325225674,1714596668220,-695.297328,0.0005726,120]
[325225675,1714596668229,-4150.6,0.0005726,120]
[325225676,1714596668240,-1064.37,0.0005726,120]
[325225677,1714596668250,-1002.30953689,0.0005726,120]
[325225678,1714596668259,-262.519492,0.0005726,120]
[325225679,1714596668270,-695.297328,0.0005726,120]
[325225680,1714596668279,-500.0,0.0005726,120]
[325225681,1714596668289,-708.55,0.0005726,120]
[325225682,1714596668299,-500.0,0.0005726,120]
[325225683,1714596668308,-500.0,0.0005726,120]
[325225684,1714596668318,-2139.31,0.0005726,120]
[325225685,1714596668327,-747.59,0.0005726,120]
[325225686,1714596668336,-500.0,0.0005726,120]
[325225687,1714596668346,-1819.15,0.0005726,120]
[325225688,1714596668356,-893.59,0.0005726,120]
[325225689,1714596668366,-2548.41,0.0005726,120]
[325225690,1714596668375,-647.78,0.0005726,120]
[325225691,1714596668385,-382.848254,0.0005726,120]
[325225692,1714596668394,-972.62,0.0005726,120]
[325225693,1714596668403,-382.848254,0.0005726,120]
[325225694,1714596668413,-500.0,0.0005726,120]
[325225695,1714596668423,-953.99,0.0005726,120]
[325225696,1714596668435,-1932.29,0.0005726,120]
[325225697,1714596668446,-912.85,0.0005726,120]
[325225698,1714596668455,-412.279401,0.0005726,120]
[325225699,1714596668465,-631.99,0.0005726,120]
[325225700,1714596668474,-412.279401,0.0005726,120]
[325225701,1714596668485,-564.95,0.0005726,120]
[325225702,1714596668495,-170.270885,0.0005726,30]
[325225703,1714596668504,-771.7,0.0005726,120]
[325225704,1714596668513,-156.225468,0.0005726,120]
[325225705,1714596668524,-170.270885,0.0005726,30]
[325225706,1714596668533,-500.0,0.0005726,120]
[325225707,1714596668543,-156.225468,0.0005726,120]
[325225708,1714596668552,-165.149335,0.0005726,120]
[325225709,1714596668561,-1259.78,0.00057534,30]
[325225710,1714596668570,-500.0,0.00057808,120]
[325225711,1714596668580,-500.0,0.00057808,120]
[325225712,1714596668588,-500.0,0.00057808,120]
[325225713,1714596668598,-605.36,0.00057808,120]
[325225714,1714596668607,-635.9,0.00057808,120]
[325225715,1714596668616,-500.0,0.00057808,120]
[325225716,1714596668626,-151.0,0.00057808,120]
[325225717,1714596668635,-500.0,0.00057808,120]
[325225718,1714596668644,-905.44,0.00057808,120]
[325225719,1714596668653,-500.0,0.00057808,120]
[325225720,1714596668662,-1823.07,0.00057808,120]
[325225721,1714596668671,-500.0,0.00057808,120]
[325225722,1714596668681,-1540.18,0.00057808,120]
[325225723,1714596668690,-500.0,0.00057808,120]
[325225724,1714596668699,-747.85,0.00057808,120]
[325225725,1714596668708,-500.0,0.00057808,120]
[325225726,1714596668717,-500.0,0.00057808,120]
[325225727,1714596668727,-582.8,0.00057808,120]
[325225728,1714596668738,-500.0,0.00057808,120]
[325225729,1714596668747,-500.0,0.00057808,120]
[325225730,1714596668756,-164.94582348,0.00057808,120]
[325225731,1714596668765,-783.32,0.00057808,120]
[325225732,1714596668774,-500.0,0.00057808,120]
[325225733,1714596668784,-500.0,0.00057808,120]
[325225734,1714596668792,-660.58,0.00057808,120]
[325225735,1714596668801,-528.91,0.00057808,120]
[325225736,1714596668939,-651.79,0.00057808,120]
[325225737,1714596668957,-569.39,0.00057808,120]
[325225738,1714596668974,-533.64,0.00057808,120]
[325225739,1714596669000,-893.16,0.00057808,120]
[325225740,1714596669020,-500.0,0.00057808,120]
[325225741,1714596669044,-750.74,0.00057808,120]
[325225742,1714596669063,-500.0,0.00057808,120]
[325225743,1714596669085,-500.0,0.00057808,120]
[325225744,1714596669098,-918.03,0.00057808,120]
[325225745,1714596669110,-500.0,0.00057808,120]
[325225746,1714596669119,-500.0,0.00057808,120]
[325225747,1714596669129,-500.0,0.00057808,120]
[325225748,1714596669139,-151.0,0.00057808,120]
[325225749,1714596669158,-809.76,0.00057808,120]
[325225750,1714596669168,-155.082013,0.00057808,120]
[325225751,1714596669177,-816.25,0.00057808,120]
[325225752,1714596669186,-500.0,0.00057808,120]
[325225753,1714596669194,-151.0,0.00057808,120]
[325225754,1714596669204,-676.4,0.00057808,120]
[325225755,1714596669213,-500.0,0.00057808,120]
[325225756,1714596669225,-151.0,0.00057808,120]
[325225757,1714596669235,-500.0,0.00057808,120]
[325225758,1714596669244,-725.28,0.00057808,120]
[325225759,1714596669254,-617.03,0.00057808,120]
[325225760,1714596669263,-193.802651,0.00057808,120]
[325225761,1714596669272,-193.802651,0.00057808,120]
[325225762,1714596669281,-500.0,0.00057808,120]
[325225763,1714596669291,-807.48,0.00057808,120]
[325225764,1714596669299,-747.13,0.00057808,120]
[325225765,1714596669309,-500.0,0.00057808,2]
[325225766,1714596669319,-880.55,0.00057808,120]
[325225767,1714596669329,-772.32,0.00057808,120]
[325225768,1714596669353,-500.0,0.00057808,120]
[325225769,1714596669382,-161.70380556,0.00057808,120]
[325225770,1714596669393,-1424.37,0.00057808,120]
[325225771,1714596669417,-902.14,0.00057808,120]
[325225772,1714596669437,-622.31,0.00057808,120]
[325225773,1714596669454,-908.32,0.00057808,120]
[325225774,1714596669474,-1274.48,0.00057808,120]
[325225775,1714596669498,-500.0,0.00057808,120]
[325225776,1714596669520,-500.0,0.00057808,120]
[325225777,1714596669534,-511.62379661,0.00057808,120]
[325225778,1714596669548,-500.0,0.00057808,120]
[325225779,1714596669567,-151.0,0.00057808,120]
[325225780,1714596669581,-505.13,0.00057808,120]
[325225781,1714596669602,-2748.45,0.00057808,120]
[325225782,1714596669616,-2748.72,0.00057808,120]
[325225783,1714596669627,-751.55,0.00057808,120]
[325225784,1714596669653,-500.0,0.00057808,120]
[325225785,1714596669662,-500.0,0.00057808,120]
[325225786,1714596669677,-500.0,0.00057808,120]
[325225787,1714596669705,-151.0,0.00057808,120]
[325225788,1714596669721,-500.0,0.00057808,120]
[325225789,1714596669745,-891.08,0.00057808,120]
[325225790,1714596669767,-542.04,0.00057808,120]
[325225791,1714596669788,-500.0,0.00057808,120]
[325225792,1714596669797,-500.0,0.00057808,120]
[325225793,1714596669806,-718.42,0.00057808,120]
[325225794,1714596669816,-500.0,0.00057808,120]
[325225795,1714596669826,-876.77,0.00057808,120]
[325225796,1714596669835,-500.0,0.00057808,120]
[325225797,1714596669844,-500.0,0.00057808,120]
[325225798,1714596669853,-500.0,0.00057808,120]
[325225799,1714596669862,-500.0,0.00057808,120]
[325225800,1714596669871,-500.0,0.00057808,120]
[325225801,1714596669881,-500.0,0.00057808,120]
[325225802,1714596669890,-499.58086244,0.00057808,120]
[325225803,1714596669898,-253.329038,0.00057808,120]
[325225804,1714596669907,-543.06,0.00057808,120]
[325225805,1714596669916,-597.36,0.00057808,120]
[325225806,1714596669925,-253.329038,0.00057808,120]
[325225807,1714596669935,-500.0,0.00057808,120]
[325225808,1714596669944,-847.59,0.00057808,120]
[325225809,1714596669953,-500.0,0.00057808,120]
[325225810,1714596669963,-552.66,0.00057808,120]
[325225811,1714596669973,-737.95,0.00057808,120]
[325225812,1714596669988,-500.0,0.00057808,120]
[325225813,1714596669999,-500.0,0.00057808,60]
[325225814,1714596670008,-735.13,0.00057808,120]
[325225815,1714596670017,-500.0,0.00057808,21]
[325225816,1714596670026,-500.0,0.00057808,120]
[325225817,1714596670038,-624.7,0.00057808,120]
[325225818,1714596670048,-3241.16,0.00057808,120]
[325225819,1714596670057,-151.0,0.00057808,120]
[325225820,1714596670067,-1071.63,0.00057808,120]
[325225821,1714596670077,-1139.17,0.00057808,120]
[325225822,1714596670087,-629.98,0.00057808,7]
[325225823,1714596670095,-500.0,0.00057808,120]
[325225824,1714596670105,-513.73,0.00057808,120]
[325225825,1714596670114,-6873.87,0.00057808,120]
[325225826,1714596670123,-1040.84,0.00057808,120]
[325225827,1714596670133,-151.0,0.00057808,120]
[325225828,1714596670141,-614.531169,0.00057808,120]
[325225829,1714596670150,-1819.25,0.00057808,2]
[325225830,1714596670159,-614.531169,0.00057808,120]
[325225831,1714596670168,-807.38,0.00057808,120]
[325225832,1714596670178,-684.4,0.00057808,120]
[325225833,1714596670188,-1563.93,0.00057808,120]
[325225834,1714596670197,-880.74,0.00057808,120]
[325225835,1714596670207,-500.0,0.00057808,120]
[325225836,1714596670216,-500.0,0.00057808,120]
[325225837,1714596670226,-500.0,0.00057808,120]
[325225838,1714596670236,-417.250857,0.00057808,120]
[325225839,1714596670245,-500.0,0.00057808,120]
[325225840,1714596670254,-905.71,0.00057808,120]
[325225841,1714596670264,-417.250857,0.00057808,120]
[325225842,1714596670273,-287.73985,0.00057808,120]
[325225843,1714596670283,-287.73985,0.00057808,120]
[325225844,1714596670292,-500.0,0.00057808,120]
[325225845,1714596670302,-1006.03,0.00057808,120]
[325225846,1714596670311,-990.64,0.00057808,120]
[325225847,1714596670320,-151.0,0.00057808,120]
[325225848,1714596670329,-529.69,0.00057808,120]
[325225849,1714596670339,-500.0,0.00057808,120]
[325225850,1714596670348,-500.0,0.00057808,120]
[325225851,1714596670357,-957.98,0.00057808,120]
[325225852,1714596670366,-399.351879,0.00057808,120]
[325225853,1714596670375,-151.0,0.00057808,120]
[325225854,1714596670384,-399.351879,0.00057808,120]
[325225855,1714596670394,-957.45,0.00057808,120]
[325225856,1714596670404,-501.28,0.00057808,120]
[325225857,1714596670413,-500.0,0.00057808,120]
[325225858,1714596670422,-1396.65,0.00057808,30]
[325225859,1714596670434,-13131.9,0.00057808,120]
[325225860,1714596670443,-649.29,0.00057808,120]
[325225861,1714596670453,-540.12,0.00057808,120]
[325225862,1714596670462,-500.0,0.00057808,120]
[325225863,1714596670471,-220.364079,0.00057808,120]
[325225864,1714596670481,-220.364079,0.00057808,120]
[325225865,1714596670492,-5415.88,0.00057808,120]
[325225866,1714596670501,-500.0,0.00057808,120]
[325225867,1714596670511,-524.46,0.00057808,120]
[325225868,1714596670520,-500.0,0.00057808,120]
[325225869,1714596670529,-945.484392,0.00057808,120]
[325225870,1714596670538,-1124.84,0.00057808,120]
[325225871,1714596670547,-945.484392,0.00057808,120]
[325225872,1714596670556,-725.84,0.00057808,120]
[325225873,1714596670565,-721.56,0.00057808,120]
[325225874,1714596670574,-2624.92,0.00057808,120]
[325225875,1714596670583,-175.798414,0.00057808,120]
[325225876,1714596670592,-773.09,0.00057808,120]
[325225877,1714596670601,-171.421824,0.00057808,120]
[325225878,1714596670610,-175.798414,0.00057808,120]
[325225879,1714596670620,-672.9,0.00057808,120]
[325225880,1714596670628,-671.69,0.00057808,120]
[325225881,1714596670638,-500.0,0.00057808,120]
[325225882,1714596670648,-904.57,0.00057808,120]
[325225883,1714596670658,-262.519492,0.00057808,120]
[325225884,1714596670667,-695.297328,0.00057808,120]
[325225885,1714596670676,-4150.6,0.00057808,120]
[325225886,1714596670685,-1064.37,0.00057808,120]
[325225887,1714596670694,-262.519492,0.00057808,120]
[325225888,1714596670703,-695.297328,0.00057808,120]
[325225889,1714596670713,-500.0,0.00057808,120]
[325225890,1714596670722,-708.55,0.00057808,120]
[325225891,1714596670730,-500.0,0.00057808,120]
[325225892,1714596670744,-500.0,0.00057808,120]
[325225893,1714596670754,-2139.31,0.00057808,120]
[325225894,1714596670764,-747.59,0.00057808,120]
[325225895,1714596670773,-500.0,0.00057808,120]
[325225896,1714596670783,-1819.15,0.00057808,120]
[325225897,1714596670792,-893.59,0.00057808,120]
[325225898,1714596670802,-2548.41,0.00057808,120]
[325225899,1714596670812,-647.78,0.00057808,120]
[325225900,1714596670821,-382.848254,0.00057808,120]
[325225901,1714596670830,-972.62,0.00057808,120]
[325225902,1714596670840,-382.848254,0.00057808,120]
[325225903,1714596670849,-500.0,0.00057808,120]
[325225904,1714596670859,-953.99,0.00057808,120]
[325225905,1714596670868,-1932.29,0.00057808,120]
[325225906,1714596670877,-912.85,0.00057808,120]
[325225907,1714596670886,-412.279401,0.00057808,120]
[325225908,1714596670895,-631.99,0.00057808,120]
[325225909,1714596670905,-412.279401,0.00057808,120]
[325225910,1714596670914,-564.95,0.00057808,120]
[325225911,1714596670923,-170.270885,0.00057808,30]
[325225912,1714596670932,-771.7,0.00057808,120]
[325225913,1714596670941,-156.225468,0.00057808,120]
[325225914,1714596670951,-170.270885,0.00057808,30]
[325225915,1714596670966,-500.0,0.00057808,120]
[325225916,1714596670975,-156.225468,0.00057808,120]
[325225917,1714596670991,-165.149335,0.00057808,120]
[325225918,1714596671001,-1259.78,0.00058082,35]
[325225919,1714596671012,-211.09,0.00058346,35]
[325225920,1714596671021,-500.0,0.00058356,120]
[325225921,1714596671031,-500.0,0.00058356,120]
[325225922,1714596671041,-500.0,0.00058356,120]
[325225923,1714596671050,-605.36,0.00058356,120]
[325225924,1714596671059,-635.9,0.00058356,120]
[325225925,1714596671068,-500.0,0.00058356,120]
[325225926,1714596671077,-298.059141,0.00058356,120]
[325225927,1714596671087,-500.0,0.00058356,120]
[325225928,1714596671096,-905.44,0.00058356,120]
[325225929,1714596671105,-500.0,0.00058356,120]
[325225930,1714596671113,-1823.07,0.00058356,120]
[325225931,1714596671123,-500.0,0.00058356,120]
[325225932,1714596671132,-1540.18,0.00058356,120]
[325225933,1714596671142,-500.0,0.00058356,120]
[325225934,1714596671152,-747.85,0.00058356,120]
[325225935,1714596671161,-500.0,0.00058356,120]
[325225936,1714596671170,-500.0,0.00058356,120]
[325225937,1714596671180,-582.8,0.00058356,120]
[325225938,1714596671189,-500.0,0.00058356,120]
[325225939,1714596671198,-500.0,0.00058356,120]
[325225940,1714596671208,-783.32,0.00058356,120]
[325225941,1714596671217,-539.61231098,0.00058356,120]
[325225942,1714596671227,-500.0,0.00058356,120]
[325225943,1714596671240,-660.58,0.00058356,120]
[325225944,1714596671250,-528.91,0.00058356,120]
[325225945,1714596671259,-651.79,0.00058356,120]
[325225946,1714596671269,-569.39,0.00058356,120]
[325225947,1714596671279,-533.64,0.00058356,120]
[325225948,1714596671289,-893.16,0.00058356,120]
[325225949,1714596671299,-500.0,0.00058356,120]
[325225950,1714596671308,-750.74,0.00058356,120]
[325225951,1714596671317,-500.0,0.00058356,120]
[325225952,1714596671327,-500.0,0.00058356,120]
[325225953,1714596671336,-918.03,0.00058356,120]
[325225954,1714596671346,-500.0,0.00058356,120]
[325225955,1714596671355,-500.0,0.00058356,120]
[325225956,1714596671364,-500.0,0.00058356,120]
[325225957,1714596671374,-151.0,0.00058356,120]
[325225958,1714596671384,-809.76,0.00058356,120]
[325225959,1714596671394,-155.082013,0.00058356,120]
[325225960,1714596671404,-816.25,0.00058356,120]
[325225961,1714596671413,-500.0,0.00058356,120]
[325225962,1714596671423,-151.0,0.00058356,120]
[325225963,1714596671435,-676.4,0.00058356,120]
[325225964,1714596671445,-500.0,0.00058356,120]
[325225965,1714596671455,-151.0,0.00058356,120]
[325225966,1714596671464,-500.0,0.00058356,120]
[325225967,1714596671474,-725.28,0.00058356,120]
[325225968,1714596671489,-617.03,0.00058356,120]
[325225969,1714596671499,-193.802651,0.00058356,120]
[325225970,1714596671509,-193.802651,0.00058356,120]
[325225971,1714596671519,-500.0,0.00058356,120]
[325225972,1714596671529,-747.13,0.00058356,120]
[325225973,1714596671539,-807.48,0.00058356,120]
[325225974,1714596671549,-500.0,0.00058356,2]
[325225975,1714596671560,-880.55,0.00058356,120]
[325225976,1714596671570,-772.32,0.00058356,120]
[325225977,1714596671579,-498.0,0.00058356,120]
[325225978,1714596671589,-1424.37,0.00058356,120]
[325225979,1714596671598,-902.14,0.00058356,120]
[325225980,1714596671607,-622.31,0.00058356,120]
[325225981,1714596671617,-908.32,0.00058356,120]
[325225982,1714596671626,-1274.48,0.00058356,120]
[325225983,1714596671636,-500.0,0.00058356,120]
[325225984,1714596671645,-500.0,0.00058356,120]
[325225985,1714596671654,-500.0,0.00058356,120]
[325225986,1714596671664,-151.0,0.00058356,120]
[325225987,1714596671675,-505.13,0.00058356,120]
[325225988,1714596671684,-2748.45,0.00058356,120]
[325225989,1714596671695,-2748.72,0.00058356,120]
[325225990,1714596671704,-751.55,0.00058356,120]
[325225991,1714596671714,-500.0,0.00058356,120]
[325225992,1714596671849,-500.0,0.00058356,120]
[325225993,1714596671860,-500.0,0.00058356,120]
[325225994,1714596671869,-233.615068,0.00058356,120]
[325225995,1714596671880,-500.0,0.00058356,120]
[325225996,1714596671890,-891.08,0.00058356,120]
[325225997,1714596671902,-542.04,0.00058356,120]
[325225998,1714596671911,-500.0,0.00058356,120]
[325225999,1714596671920,-500.0,0.00058356,120]
[325226000,1714596671930,-718.42,0.00058356,120]
[325226001,1714596671940,-500.0,0.00058356,120]
[325226002,1714596671949,-876.77,0.00058356,120]
[325226003,1714596671961,-500.0,0.00058356,120]
[325226004,1714596671971,-500.0,0.00058356,120]
[325226005,1714596671984,-500.0,0.00058356,120]
[325226006,1714596671994,-500.0,0.00058356,120]
[325226007,1714596672005,-382.4418266,0.00058356,120]
[325226008,1714596672014,-455.97060608,0.00058356,120]
[325226009,1714596672023,-253.329038,0.00058356,120]
[325226010,1714596672033,-543.06,0.00058356,120]
[325226011,1714596672043,-597.36,0.00058356,120]
[325226012,1714596672052,-253.329038,0.00058356,120]
[325226013,1714596672063,-500.0,0.00058356,120]
[325226014,1714596672072,-847.59,0.00058356,120]
[325226015,1714596672082,-500.0,0.00058356,120]
[325226016,1714596672091,-552.66,0.00058356,120]
[325226017,1714596672100,-737.95,0.00058356,120]
[325226018,1714596672110,-500.0,0.00058356,120]
[325226019,1714596672119,-500.0,0.00058356,60]
[325226020,1714596672128,-735.13,0.00058356,120]
[325226021,1714596672138,-500.0,0.00058356,21]
[325226022,1714596672148,-467.42886629,0.00058356,120]
[325226023,1714596672157,-624.7,0.00058356,120]
[325226024,1714596672165,-3241.16,0.00058356,120]
[325226025,1714596672174,-1071.63,0.00058356,120]
[325226026,1714596672183,-1139.17,0.00058356,120]
[325226027,1714596672192,-629.98,0.00058356,7]
[325226028,1714596672202,-461.45700737,0.00058356,120]
[325226029,1714596672211,-513.73,0.00058356,120]
[325226030,1714596672220,-6873.87,0.00058356,120]
[325226031,1714596672230,-1040.84,0.00058356,120]
[325226032,1714596672241,-151.0,0.00058356,120]
[325226033,1714596672250,-614.531169,0.00058356,120]
[325226034,1714596672259,-1819.25,0.00058356,2]
[325226035,1714596672268,-614.531169,0.00058356,120]
[325226036,1714596672278,-807.38,0.00058356,120]
[325226037,1714596672287,-684.4,0.00058356,120]
[325226038,1714596672296,-1563.93,0.00058356,120]
[325226039,1714596672305,-880.74,0.00058356,120]
[325226040,1714596672315,-500.0,0.00058356,120]
[325226041,1714596672324,-500.0,0.00058356,120]
[325226042,1714596672333,-500.0,0.00058356,120]
[325226043,1714596672343,-417.250857,0.00058356,120]
[325226044,1714596672352,-500.0,0.00058356,120]
[325226045,1714596672361,-905.71,0.00058356,120]
[325226046,1714596672371,-417.250857,0.00058356,120]
[325226047,1714596672381,-287.73985,0.00058356,120]
[325226048,1714596672393,-287.73985,0.00058356,120]
[325226049,1714596672402,-500.0,0.00058356,120]
[325226050,1714596672412,-1006.03,0.00058356,120]
[325226051,1714596672423,-990.64,0.00058356,120]
[325226052,1714596672433,-151.0,0.00058356,120]
[325226053,1714596672443,-529.69,0.00058356,120]
[325226054,1714596672453,-500.0,0.00058356,120]
[325226055,1714596672462,-500.0,0.00058356,120]
[325226056,1714596672471,-957.98,0.00058356,120]
[325226057,1714596672481,-399.351879,0.00058356,120]
[325226058,1714596672493,-399.351879,0.00058356,120]
[325226059,1714596672503,-957.45,0.00058356,120]
[325226060,1714596672513,-501.28,0.00058356,120]
[325226061,1714596672523,-500.0,0.00058356,120]
[325226062,1714596672532,-1396.65,0.00058356,30]
[325226063,1714596672542,-13131.9,0.00058356,120]
[325226064,1714596672552,-649.29,0.00058356,120]
[325226065,1714596672561,-500.0,0.00058356,120]
[325226066,1714596672571,-5415.88,0.00058356,120]
[325226067,1714596672580,-500.0,0.00058356,120]
[325226068,1714596672589,-524.46,0.00058356,120]
[325226069,1714596672599,-500.0,0.00058356,120]
[325226070,1714596672608,-1124.84,0.00058356,120]
[325226071,1714596672618,-725.84,0.00058356,120]
[325226072,1714596672627,-721.56,0.00058356,120]
[325226073,1714596672636,-2624.92,0.00058356,120]
[325226074,1714596672645,-773.09,0.00058356,120]
[325226075,1714596672655,-672.9,0.00058356,120]
[325226076,1714596672664,-671.69,0.00058356,120]
[325226077,1714596672673,-500.0,0.00058356,120]
[325226078,1714596672683,-904.57,0.00058356,120]
[325226079,1714596672693,-4150.6,0.00058356,120]
[325226080,1714596672702,-1064.37,0.00058356,120]
[325226081,1714596672712,-337.35629792,0.00058356,120]
[325226082,1714596672722,-708.55,0.00058356,120]
[325226083,1714596672731,-500.0,0.00058356,120]
[325226084,1714596672742,-500.0,0.00058356,120]
[325226085,1714596672751,-2139.31,0.00058356,120]
[325226086,1714596672760,-747.59,0.00058356,120]
[325226087,1714596672770,-500.0,0.00058356,120]
[325226088,1714596672779,-1819.15,0.00058356,120]
[325226089,1714596672788,-893.59,0.00058356,120]
[325226090,1714596672797,-2548.41,0.00058356,120]
[325226091,1714596672807,-647.78,0.00058356,120]
[325226092,1714596672816,-972.62,0.00058356,120]
[325226093,1714596672826,-500.0,0.00058356,120]
[325226094,1714596672835,-953.99,0.00058356,120]
[325226095,1714596672844,-1932.29,0.00058356,120]
[325226096,1714596672854,-912.85,0.00058356,120]
[325226097,1714596672864,-631.99,0.00058356,120]
[325226098,1714596672873,-564.95,0.00058356,120]
[325226099,1714596672882,-170.270885,0.00058356,30]
[325226100,1714596672891,-771.7,0.00058356,120]
[325226101,1714596672901,-156.225468,0.00058356,120]
[325226102,1714596672910,-170.270885,0.00058356,30]
[325226103,1714596672919,-500.0,0.00058356,120]
[325226104,1714596672928,-156.225468,0.00058356,120]
[325226105,1714596672937,-165.149335,0.00058356,120]
[325226106,1714596672947,-151.0,0.00058384,120]
[325226107,1714596672958,-95116.78279373,0.000584,30]
[325226108,1714596672970,-151.0,0.000584,120]
[325226109,1714596672979,-253.329038,0.000584,120]
[325226110,1714596672990,-253.329038,0.000584,120]
[325226111,1714596672999,-151.0,0.000584,120]
[325226112,1714596673010,-151.0,0.000584,120]
[325226113,1714596673019,-220.364079,0.000584,120]
[325226114,1714596673029,-220.364079,0.000584,120]
[325226115,1714596673038,-945.484392,0.000584,120]
[325226116,1714596673048,-945.484392,0.000584,120]
[325226117,1714596673058,-175.798414,0.000584,120]
[325226118,1714596673067,-175.798414,0.000584,120]
[325226119,1714596673076,-262.519492,0.000584,120]
[325226120,1714596673086,-695.297328,0.000584,120]
[325226121,1714596673095,-262.519492,0.000584,120]
[325226122,1714596673104,-695.297328,0.000584,120]
[325226123,1714596673113,-382.848254,0.000584,120]
[325226124,1714596673123,-382.848254,0.000584,120]
[325226125,1714596673132,-412.279401,0.000584,120]
[325226126,1714596673141,-412.279401,0.000584,120]
[325226127,1714596673151,-769.4,0.00058542,120]